Cogmind - Beta 16 --- EXPLORER MODE // 2026.01.01 @ 10:38:58 Player: K.K.Y. Result: Destroyed by Piercing Trap Performance ------------- Evolutions (0) 0 Regions Visited (3) 600 Robots Destroyed (37) 185 Value Destroyed (853) 853 Prototype IDs (0) 0 Alien Tech Used (0) 0 Bonus (120) 120 TOTAL SCORE: 1758 Bonus ------- Follower Combat Kills 120 Cogmind --------- Core Integrity 0/250 Matter 300/300 Energy 158/160 System Corruption 0% Temperature Cool (1) Movement Treading (160) Location -10/Subcaves Parts ------- > --- POWER (1) -------- Light Nuclear Core > --- PROPULSION (2) --- Light Treads Airjet > --- UTILITY (3) ------ Advanced Visual Processing Unit Sensor Array Improved Signal Interpreter > --- WEAPON (2) ------- Makeshift Shrapnel Gun Battle Cannon > --- INVENTORY (5) ---- Medium Storage Unit Experimental Sensor Array Hardened Medium Armor Plating Makeshift Hacking Suite Multitool Peak State ------------ > --- POWER ------------ Light Nuclear Core > --- PROPULSION ------- Light Treads Airjet > --- UTILITY ---------- Advanced Visual Processing Unit Sensor Array Improved Signal Interpreter > --- WEAPON ----------- Makeshift Shrapnel Gun Battle Cannon > --- INVENTORY -------- Medium Storage Unit Experimental Sensor Array Hardened Medium Armor Plating Makeshift Hacking Suite Multitool [Rating: 21] Favorites ----------- Power Light Nuclear Core Engine Ion Engine Power Core Light Nuclear Core Propulsion Light Treads Treads Light Treads Hover Unit Airjet Utility Sensor Array Device Sensor Array Storage Medium Storage Unit Processor Improved Signal Interpreter Weapon Particle Gun Energy Gun Particle Gun Ballistic Gun Makeshift Shrapnel Gun Ballistic Cannon Battle Cannon Special Weapon Mining Laser Build | -11 -10 -10 -10 ------- Run | Yrd Mat Min Sub Slots Evolved 1 | . 1 . . Power . | . . . . Propulsion . | . . . . Utility 1 | . 1 . . Weapon . | . . . . Parts Attached 25 | 6 7 7 5 Power 3 | 1 1 1 . Engine 1 | 1 . . . Core 2 | . 1 1 . Reactor . | . . . . Propulsion 6 | 2 1 2 1 Treads 4 | 2 1 . 1 Leg . | . . . . Wheel . | . . . . Hover 2 | . . 2 . Flight . | . . . . Utility 8 | 2 3 2 1 Device 5 | 1 3 1 . Storage 1 | 1 . . . Processor 2 | . . 1 1 Hackware . | . . . . Protection . | . . . . Artifact . | . . . . Weapon 8 | 1 2 2 3 Energy Gun 5 | 1 2 2 . Energy Cannon . | . . . . Ballistic Gun 1 | . . . 1 Ballistic Cannon 1 | . . . 1 Launcher . | . . . . Special Weapon 1 | . . . 1 Impact Weapon . | . . . . Slashing Weapon . | . . . . Piercing Weapon . | . . . . Special Melee Weapon . | . . . . Unidentified Prototypes . | . . . . Parts Lost 2 | . . . 2 Power . | . . . . Propulsion 1 | . . . 1 Utility 1 | . . . 1 Weapon . | . . . . Highest Loss Streak 1 | . . . 1 To Critical Strikes . | . . . . Average Backups 4 | 2 4 5 5 Power . | . . . . Propulsion . | . . . . Utility 3 | 1 2 3 3 Weapon . | . 1 1 . Tool/Special . | . . . . Unused Backups 6 | . 1 1 4 Power . | . . . . Propulsion . | . . . . Utility 5 | . 1 1 3 Weapon . | . . . . Tool/Special 1 | . . . 1 Average Slot Usage (%) 97 | . 98 100 95 Engine 1 | . 2 . . Core 10 | . 9 12 12 Treads 16 | . 25 15 4 Hover 7 | . . 9 17 Device 28 | . 34 32 16 Storage 1 | . 2 . . Processor 6 | . . 4 18 Energy Gun 20 | . 23 25 14 Ballistic Cannon 2 | . . . 7 Peak Build Rating 21 | 6 14 19 21 Average Rating 14 | 4 12 15 18 On Entrance 9 | . 6 14 19 Avg Prop Armor Cover (%) 5 | . . . 5 Naked Turns . | . . . . Heaviest Build 24 | 19 24 14 13 Greatest Support 40 | 40 40 40 20 Greatest Overweight (x) 4 | . . 4 1 Average Overweight (x) . | . . . . Largest Inventory Capacity 10 | 10 10 5 5 Average Capacity 5 | 9 6 5 5 Most Carried 6 | 5 6 5 5 Average Carried 4 | 2 4 4 4 Final Capacity 10 | 10 5 5 5 Final Carried 5 | 3 5 5 5 Class Distribution -------------------- 47% | Scavenger-Mutant 19% | Hacker-Scout 19% | Hacker-Mutant 14% | Hacker-Skirmisher Dominant Class ---------------- Scavenger-Mutant | -10/Materials Scavenger-Mutant | -10/Mines Hacker-Skirmisher | -10/Subcaves Resources | -11 -10 -10 -10 ----------- Run | Yrd Mat Min Sub Matter Collected 575 | 253 87 70 165 Remotely . | . . . . Salvage Created 1530 | 124 776 384 246 Parts 61 | 2 30 15 14 Haulers Intercepted . | . . . . Recyclers Shooed 2 | . 1 1 . Parts Field Recycled . | . . . . Retrieved Matter . | . . . . Parts Self-Destructed . | . . . . Prevented . | . . . . Parts Restored . | . . . . Kills | -11 -10 -10 -10 ------- Run | Yrd Mat Min Sub Combat Hostiles Destroyed 18 | . 8 4 6 Guns 16 | . 7 4 5 Cannons 1 | . . . 1 Classes Destroyed 9 | 2 3 1 3 Worker 3 | . . 3 . Builder 3 | . 3 . . Tunneler 2 | 1 . 1 . Recycler 8 | 1 5 2 . Watcher 3 | . 3 . . Grunt 13 | . 8 4 1 Sentry 1 | . . . 1 Artisan 1 | . . . 1 Subdweller 4 | . . . 4 Best Kill Streak 7 | 2 5 7 2 Combat Bots Only 2 | . 2 2 2 Max Kills in Single Turn 2 | 1 1 2 1 Gunslinging . | . . . . Exploded . | . . . . Melee . | . . . . Uniques/NPCs Destroyed . | . . . . Combat | -11 -10 -10 -10 -------- Run | Yrd Mat Min Sub Hostile Shots Fired 90 | . 51 13 26 Missed 20 | . 12 1 7 Hits 70 | . 39 12 19 Projectile 70 | . 39 12 19 Damage Taken 918 | . 322 91 505 Core 264 | . 84 7 173 Absorbed by Shields . | . . . . Ignored by Resistances 430 | . 206 59 165 Core Remaining (%) 100 | 100 . . . Volleys Fired 124 | 8 63 19 34 Largest 2 | 1 2 2 2 Hottest 165 | 50 130 130 165 Shots Fired 206 | 8 101 38 59 Gun 186 | 8 101 38 39 Cannon 12 | . . . 12 Launcher . | . . . . Special 8 | . . . 8 Kinetic 12 | . . . 12 Thermal 194 | 8 101 38 47 Explosive . | . . . . Electromagnetic . | . . . . Robot Hit Streak 37 | 8 28 29 37 Robot Miss Streak 2 | . 2 1 1 Penetration Max . | . . . . Secondary Targets 2 | . . 1 1 Max Gunslinging Chain 1 | . . 1 1 Shots Hit Robots 157 | 8 82 35 32 Core Hits 59 | 3 28 15 13 Critical Kills . | . . . . Critical Parts Destroyed . | . . . . Critical Strikes 11 | . 8 2 1 Burn 11 | . 8 2 1 Melee Attacks . | . . . . Impact . | . . . . Slashing . | . . . . Piercing . | . . . . Sneak Attacks . | . . . . Combat Hostiles . | . . . . Follow-up Attacks . | . . . . Damage Inflicted 2372 | 100 1193 566 513 Guns 2261 | 100 1193 563 405 Cannons 108 | . . . 108 Explosions . | . . . . Melee . | . . . . Ramming 3 | . . 3 . Kinetic 108 | . . . 108 Thermal 2261 | 100 1193 563 405 Explosive . | . . . . Electromagnetic . | . . . . Impact . | . . . . Slashing . | . . . . Piercing . | . . . . Highest Corruption . | . . . . Average Corruption . | . . . . Corruption Purged . | . . . . Corruption Blocked . | . . . . Overload Shots . | . . . . Overflow Damage . | . . . . Projectiles . | . . . . Explosions . | . . . . Melee . | . . . . Knockbacks 1 | . . . 1 Impact . | . . . . Kinetic 1 | . . . 1 Secondary . | . . . . Self-Inflicted Damage . | . . . . Shots . | . . . . Rammed . | . . . . Targets Rammed 1 | . . 1 . Kicked . | . . . . Crushed 1 | . . 1 . Highest Temperature 307 | 60 307 246 141 Average Temperature 84 | 25 90 107 44 Received Heat Transfer 450 | . 276 87 87 Siege Activations . | . . . . Martial Activations . | . . . . Shielding Activations . | . . . . Robots Disrupted . | . . . . Combat Hostiles . | . . . . Robots Corrupted . | . . . . Combat Hostiles . | . . . . Parts Fried . | . . . . Impact Corruptions . | . . . . Robots Melted 1 | . 1 . . Combat Hostiles 1 | . 1 . . Parts Melted 14 | 1 5 4 4 Heat Transferred 6475 | 296 3626 1517 1036 Parts Sabotaged . | . . . . Parts Stolen . | . . . . Parts Stripped . | . . . . Power Chain Reactions . | . . . . Alert | -11 -10 -10 -10 ------- Run | Yrd Mat Min Sub Maximum Alert Level . | . . . . Low Security (%) 100 | 100 100 100 . Level 1 . | . . . . Level 2 . | . . . . Level 3 . | . . . . Level 4 . | . . . . Level 5 . | . . . . High Security . | . . . . Max Security . | . . . . Peak Influence 50 | 5 50 50 . Initial . | . . . . Average 4 | . 4 5 . Influence Increases 446 | 10 263 130 43 Destroy 0b10 Robot/C 280 | . 160 80 40 Destroy 0b10 Robot/NC 95 | 10 55 30 . Destroy Leader 66 | . 46 20 . Allied During Kill 3 | . . . 3 Destroy Structure 2 | . 2 . . Influence Decreases 446 | 10 263 130 43 Time Decay 446 | 10 263 130 43 Squads Dispatched 1 | . . 1 . Investigation 1 | . . 1 . Extermination . | . . . . Reinforcement . | . . . . Assault . | . . . . Garrison . | . . . . Intercept . | . . . . Searches Triggered . | . . . . Construction Impeded . | . . . . Haulers Reinforced . | . . . . Active Scanning Responses . | . . . . Cargo Convoy Interrupts . | . . . . Stealth | -11 -10 -10 -10 --------- Run | Yrd Mat Min Sub Distress Signals 1 | . . 1 . Communications Jammed . | . . . . Distress Signals . | . . . . Times Spotted 34 | . 21 4 9 Peak Tracking Total 3 | . 3 2 2 Tactical Retreats 2 | . 2 . . ECM-based Alert Blocks 2 | . 2 . . Traps | -11 -10 -10 -10 ------- Run | Yrd Mat Min Sub Traps Triggered 6 | . 1 . 5 Indirectly . | . . . . Trap Hack Attempts . | . . . . Triggered . | . . . . Disarmed . | . . . . Reprogrammed . | . . . . Reused . | . . . . Traps Extracted . | . . . . Installed . | . . . . Triggered . | . . . . Machines | -11 -10 -10 -10 ---------- Run | Yrd Mat Min Sub Machines Disabled . | . . . . Max in Single Turn . | . . . . Machines Repaired . | . . . . Machines Dismantled . | . . . . Machines Sabotaged . | . . . . Overloaded Fab Kills . | . . . . Hacking | -11 -10 -10 -10 --------- Run | Yrd Mat Min Sub Machines Accessed 2 | . . 1 1 Terminals . | . . . . Fabricators . | . . . . Repair Stations . | . . . . Recycling Units . | . . . . Scanalyzers . | . . . . Garrison Access . | . . . . Total Hacks 5 | . . 1 4 Successful 5 | . . 1 4 Failed . | . . . . Catastrophic . | . . . . Database Lockouts . | . . . . Manual . | . . . . Terminals . | . . . . Fabricators . | . . . . Repair Stations . | . . . . Recycling Units . | . . . . Scanalyzers . | . . . . Garrison Access . | . . . . Terminal Hacks 5 | . . 1 4 Record 4 | . . . 4 Open Door 1 | . . 1 . Fabricator Hacks . | . . . . Repair Station Hacks . | . . . . Recycling Unit Hacks . | . . . . Scanalyzer . | . . . . Garrison Access Hacks . | . . . . Unauthorized Hacks . | . . . . Terminals . | . . . . Fabricators . | . . . . Repair Stations . | . . . . Recycling Units . | . . . . Scanalyzers . | . . . . Garrison Access . | . . . . Data Cores Recovered . | . . . . Used . | . . . . Hacking Detections . | . . . . Full Trace Events . | . . . . Feedback Events . | . . . . Feedback Blocked . | . . . . Robot Schematics Acquired . | . . . . Robots Built . | . . . . Authchips . | . . . . Time . | . . . . Total Robot Build Rating . | . . . . Part Schematics Acquired . | . . . . Parts Built . | . . . . Authchips . | . . . . Time . | . . . . Total Part Build Rating . | . . . . Part Studies Acquired . | . . . . Parts Repaired . | . . . . Time . | . . . . Parts Recycled . | . . . . Recycled Matter . | . . . . Retrieved Matter . | . . . . Retrieved Components . | . . . . Parts Scanalyzed . | . . . . Part Schematics Acquired . | . . . . Parts Damaged . | . . . . Bothacking | -11 -10 -10 -10 ------------ Run | Yrd Mat Min Sub Used RIF Installer . | . . . . Robots Hacked . | . . . . Non-combat . | . . . . Combat . | . . . . Robot Hacks Applied . | . . . . Relay Couplers Released . | . . . . Fabnet Peak Effective % . | . . . . Robots Rewired . | . . . . Allies Hacked . | . . . . Hacks Repelled . | . . . . Allies | -11 -10 -10 -10 -------- Run | Yrd Mat Min Sub Total Allies 5 | . . 5 . Largest Group 5 | . . 5 5 Highest-Rated Group 86 | . . 86 86 Highest-Rated Ally 31 | . . 31 31 Total Orders . | . . . . Ally Attacks 19 | . . . 19 Total Damage 293 | . . . 293 Kills 4 | . . . 4 Allies Corrupted . | . . . . Allies Melted . | . . . . Intel | -11 -10 -10 -10 ------- Run | Yrd Mat Min Sub Active Infowar (turns) 3290 | 96 1424 747 1023 Optics 481 | . . . 481 Sensors 3194 | . 1424 747 1023 Structural 2201 | . 1126 747 328 ECM 308 | 96 212 . . Robot Analysis Total . | . . . . Derelict Logs Recovered 1 | . . . 1 Drone Launches . | . . . . Drone Recoveries . | . . . . Exploration | -11 -10 -10 -10 ------------- Run | Yrd Mat Min Sub Turns Passed 3330 | 136 1424 747 1023 Spaces Moved 2215 | 43 752 607 813 Core 21 | 20 . 1 . Treads 1275 | 23 752 244 256 Legs . | . . . . Wheels . | . . . . Hover 919 | . . 362 557 Flight . | . . . . Fastest Speed 50 | 50 160 56 56 Average Speed 118 | 108 160 98 96 Slowest Speed 250 | 160 160 250 160 Overloaded Moves . | . . . . Propulsion Burnouts . | . . . . Robots Hopped . | . . . . Potential Cave-ins . | . . . . Cave-ins Triggered . | . . . . Exploration Rate (%) 62 | 6 98 96 49 Regions Visited 3 Branch Regions 2 Pre-discovered Areas 2 | . . . 2 Known Exits Taken 3 | 1 1 1 . Unknown Exits Taken . | . . . . Scrap Searched 3 | . . 1 2 Spaces Dug . | . . . . Terrain Destroyed . | . . . . Melee . | . . . . Projectile . | . . . . AOE . | . . . . Terrain Rammed . | . . . . Walls Destroyed . | . . . . Machines Disabled . | . . . . Actions | -11 -10 -10 -10 --------- Run | Yrd Mat Min Sub Total 2684 | 123 874 721 966 Wait 278 | 61 37 75 105 Move 2212 | 42 751 606 813 Hop . | . . . . Pick Up 20 | 6 8 4 2 Fast Attach 6 | 3 . 2 1 Attach 9 | 3 4 1 1 Detach 3 | . 2 1 . Swap 17 | . 4 4 9 Drop 14 | . 5 8 1 Fire 124 | 8 63 19 34 Melee . | . . . . Ram . | . . . . Kick . | . . . . Crush 1 | . . 1 . Escape Stasis . | . . . . Rewire . | . . . . Trap . | . . . . Miscellaneous . | . . . . Route ------- -11/Scrapyard -10/Materials (discovered 5 exits: *Mat x3 / *Min x2) -10/Mines (discovered 4 exits: *Mat x2 / Exi / *Sub) -10/Subcaves (discovered 1 exit: *Mat) History --------- Turn | Location | Event 11 | -11/Scrapyard | Identified exit to Materials 11 | -11/Scrapyard | Discovered exit to Materials (range 15) 137 | -11/Scrapyard | Entered Materials 137 | -10/Materials | Evolved 1 slot: Utility x1 310 | -10/Materials | Build established: Hacker-Mutant 524 | -10/Materials | Identified exit to Mines 524 | -10/Materials | Discovered exit to Mines (range 13) 642 | -10/Materials | Identified exit to Materials 642 | -10/Materials | Discovered exit to Materials (range 3) 728 | -10/Materials | Discovered exit to Mines (range 9) 736 | -10/Materials | Build established: Scavenger-Mutant 1192 | -10/Materials | Discovered exit to Materials (range 15) 1382 | -10/Materials | Discovered exit to Materials (range 15) 1561 | -10/Materials | Entered Mines 1561 | -10/Mines | Discovered exit to Materials (range 16) 1583 | -10/Mines | Discovered exit to Materials (range 8) 1922 | -10/Mines | Found a damaged Exp. Sensor Array with a note attached 1927 | -10/Mines | Found Prototype Device 1993 | -10/Mines | Met a Derelict shopkeep closing up shop 2068 | -10/Mines | Deemed a non-threat by the Exiles lab entrance 2068 | -10/Mines | Identified exit to Exiles 2068 | -10/Mines | Discovered exit to Exiles (range 6) 2119 | -10/Mines | Identified exit to Subcaves 2119 | -10/Mines | Discovered exit to Subcaves (range 13) 2195 | -10/Mines | Assisted by bots powering up and referring to "LRC-V3" 2297 | -10/Mines | Build established: Hacker-Scout 2308 | -10/Mines | Entered Subcaves 2308 | -10/Subcaves | Accompanied by 5 allies 2309 | -10/Subcaves | Approached by a straggling Scientist 2313 | -10/Subcaves | Led the pair of lost Derelicts to an unsafe place 2364 | -10/Subcaves | A swath of the cavern ceiling suddenly collapsed 2413 | -10/Subcaves | Identified exit to Materials 2413 | -10/Subcaves | Discovered exit to Materials (range 9) 2425 | -10/Subcaves | A swath of the cavern ceiling suddenly collapsed 2502 | -10/Subcaves | Visited Clippyterm 2504 | -10/Subcaves | Learned Factory emergency access door positions 2529 | -10/Subcaves | Shifting Twisted Machinery released Mak. Thermal Plating 2542 | -10/Subcaves | Shifting Twisted Machinery released Sub. Monowheel 2577 | -10/Subcaves | Core integrity fell below 50% 2661 | -10/Subcaves | Learned location of Storage (-7) 2717 | -10/Subcaves | Core integrity fell below 20% 2810 | -10/Subcaves | Learned location of Zion (-7) 2810 | -10/Subcaves | Met a Zionite searching for "candidates" 3142 | -10/Subcaves | Build established: Hacker-Skirmisher 3159 | -10/Subcaves | Shifting Twisted Machinery released Sub. Power Source 3163 | -10/Subcaves | Shifting Twisted Machinery released Sub. Optics 3331 | -10/Subcaves | Destroyed by Piercing Trap Last Messages --------------- 03302_ Critical hit (Impale). 03306_ Triggered Piercing Trap. 03306_ Spikes shoot up from the floor. 03306_ Critical hit (Impale). 03307_ Trooper 1b triggered Shrapnel Trap. 03307_ An expanding cloud of shrapnel blasts out in all directions. 03310_ Triggered Piercing Trap. 03310_ Spikes shoot up from the floor. 03310_ Critical hit (Impale). 03317_ Triggered Piercing Trap. 03317_ Spikes shoot up from the floor. 03317_ Critical hit (Impale). 03319_ PU-A77(c) triggered Piercing Trap. 03319_ Spikes shoot up from the floor. 03319_ PU-A77(c) destroyed. 03324_ Acquired 10 matter. 03331_ Triggered Piercing Trap. 03331_ Spikes shoot up from the floor. 03331_ Critical hit (Impale). Map ----- +----------------------------------------------------+ | ?????????????????????????????????????????????????? | | ?????????????????????????????????????????????????? | | ?????????????????????????????????????????????????? | | ?????????????????????????????????????????????????? | | ?????????????????????????????????????????????????? | | ?????????????????????????????????????????????????? | | ??????????????????????????????????????####???????? | | ???????????????????? ????###??????????? ##??????? | | ???????????????????? ### ??????????? ####???? | | ???????????????????? ??????????# #???? | | ???????????????????? ???####### #???? | | ?????????????????????? ?## ## #????? | | ?????????????????????????# ## #????? | | ???????????????????????### ##???? | | ?????????????????????### ##??? | | ????????????????????## ???### #??? | | ????????????????????# #?????# ## ##??? | | ????????????????????? #?????# ## ##??? | | ?????????????????????? #?????# ### #??? | | ??????????????????????# ##????## ####?# ##??? | | ??????????????????????# #?????# #???# #??? | | ??????????????????????# #??###" ###??## ##??? | | ???????????????????????# #??#"" #???# #???? | | ???????????????????????# ####" ^#??## #???? | | ????????????????????????# #g% z #?## #???? | | ????????????????????????#@ g = ;;; #### #???? | | ?????????????????????# ^ g ##;;;;###?# ##?? | | ?????????????????????# ### #### ##???# [ #?? | | ?????????????????????#???####### #???# ## | | ??????????????????????????????# ##### | | ???????????????????????????????# | | ???????????????????????????????# | | ????????????????????????????#### | | ???????????????????????????## ##### | | ???????????????????????????# ##???? | | ???????????????????????????# ## ###????? | | ???????????????????????????# ######??????? | | ???????????????????????????## #???????????? | | ????????????????????????????## ##?####??###? | | ?????????????????????????????## #? ##?? # | | ??????????????????????????????# #? ??? | | ??????????????????????????????# #? ???? | | ??????????????????????????????###### #? #???? | | ???????????????????????#####?????### #? ##???? | | ????????????????????#### ##????# ## #???? | | ???????????????????## ###?## # ###?? | | ???????????????##### #?# ### | | ???????????????# #??## ## | | ???????????????# #?## ## | | ???????????????### ### ## | +----------------------------------------------------+ Best States ------------- Heat Dissipation 39 Energy Generation 14 Energy Capacity 250 Matter Stores 300 Matter Capacity 300 Sight Range 20 Robot Scan Range 14 Terrain Scan Density 10 ECM Strength 1 Resistance: KI 35 Resistance: TH 35 Resistance: EX 35 Resistance: EM 35 Resistance: I 35 Resistance: S 35 Resistance: P 35 Evasion (%) 53 Recoil Reduction 2 Offensive Hacking 20 Item Schematics ----------------- None Robot Schematics ------------------ None Fabricated ------------ Nothing Repaired ---------- Nothing Studied --------- None Alien Tech Used ----------------- None Achievements -------------- None Challenges ------------ None Game ------ Seed SigixRelayThruster Manual? 0 Play Time 00:20:52 Cumulative 235.8 hours Start 2026.01.01 @ 10:22:18 End 2026.01.01 @ 10:38:58 Sessions 1 Manual Loads 0 Difficulty Explorer Special Mode None Game No. 374 Rogue 0 Adventurer 0 Explorer 374 Win Type - Total 0 Types 0/0/0/0/0/0/0/0/0/0 Lore% 71 Gallery% 68 Achievement% 54 Wizard Run 0 Options --------- Layout 1 ASCII 0 Keyboard 0 Movement Mouse Keybinds 0 Fullscreen 1 Font 24/Smallcaps Map View 50x35 Zoom Use 0% Tactical HUD 1 Map Filters NONE Filters NONE Steam 1 RUN: 634f18f2-efb4-49fe-acae-4526ce2c6e67